[Event "Grandiscacchi GM Festival 2022"]
[Site "Montebelluna"]
[Date "2022.05.18"]
[Round "6.2"]
[White "Safarli, Eltaj"]
[Black "Martinovici, Ilia"]
[Result "1/2-1/2"]
[ECO "B45"]
[WhiteElo "2600"]
[BlackElo "2408"]
[Annotator "TA"]
[PlyCount "70"]
[EventDate "2022.05.17"]
[EventType "swiss"]
[EventCountry "ITA"]
[SourceTitle "playchess.com"]
[Source "ChessBase"]
[SourceQuality "1"]
[TimeControl "40/3600+30:1800+30"]

{[%evp 9,70,24,26,0,16,14,0,14,24,13,14,13,33,17,27,0,6,12,16,-27,-8,-6,33,12,35,5,0,0,8,12,0,5,29,25,39,28,16,33,47,-9,-4,-11,-11,-24,-18,-26,-22,-114,-110,-138,-118,-152,-33,-32,-34,-32,-29,-143,0,0,0,0,0]} 1. e4 {[%emt 0:00:01]} c5 {[%emt 0:00:50]} 2. Nf3 {[%emt 0:00:29][%cal Bg1f3,Bf3d4,Bd4b5][%mdl 32]} e6 {[%emt 0:00:05]} 3. Nc3 {[%emt 0:00:23]} Nc6 {[%emt 0:00:15]} 4. d4 {[%emt 0:02:38]} cxd4 {[%emt 0:00:05]} 5. Nxd4 {[%emt 0:00:03]} Nf6 {[%emt 0:00:06]} 6. Qd3 {[%emt 0:01:47] B45: Sicilian Four Knights.} Qc7 {[%emt 0:05:36]} 7. Ndb5 {[%emt 0:00:36]} Qb8 {[%emt 0:00:06]} 8. Qg3 {[%emt 0:00:06] Black must now prevent Nc7+.} d6 $1 {[%emt 0:03:35] Hoping for ...a6.} 9. Be3 {[%emt 0:00:06]} a6 {[%emt 0:01:31]} 10. Nd4 {[%emt 0:00:09]} Bd7 {[%emt 0:03:26]} 11. Bd3 {[%emt 0:08:48]} h5 {[%emt 0:02:51]} 12. f3 {[%emt 0:01:48]} b5 {[%emt 0:05:53][%cal Bb7b5,Bb5b4][%mdl 32] [#]} 13. Nxc6 $146 {[%emt 0:05:57]} ({Predecessor:} 13. O-O-O Ne5 14. Kb1 b4 15. Nce2 a5 16. f4 h4 17. Qe1 Nxd3 18. cxd3 h3 19. gxh3 Rxh3 {½-½ (36) Rios,C (2464)-Sanchez,S (2431) Fusagasuga 2020}) 13... Bxc6 {[%emt 0:00:07]} 14. a4 {[%emt 0:07:18]} b4 {[%emt 0:01:52]} 15. Ne2 {[%emt 0:00:47]} e5 {[%emt 0:00:20]} 16. Bg5 {[%emt 0:02:26]} Be7 {[%emt 0:01:28][%cal Oh5h4]} 17. Qh4 {[%emt 0:02:31]} (17. O-O {is interesting.} a5 18. Bc4 Qd8 19. Qf2) 17... Qd8 {[%emt 0:01:25]} 18. O-O {[%emt 0:04:44]} Nd7 {[%emt 0:00:49]} 19. Bxe7 {[%emt 0:00:24]} Qxe7 {[%emt 0:00:05]} 20. Qe1 {[%emt 0:00:49]} d5 {[%emt 0:03:46]} 21. exd5 {[%emt 0:01:18]} Bxd5 {[%emt 0:03:57]} 22. Ng3 {[%emt 0:00:22]} g6 {[%emt 0:00:43]} 23. Rd1 {[%emt 0:01:34][%cal Od3g6] Threatens to win with Bxg6!} Bc6 {[%emt 0:05:53]} 24. Be4 {[%emt 0:06:07]} (24. b3 $14) 24... Rc8 $1 $11 {[%emt 0:00:53][%cal Ba8c8,Bc8c6,Bc6c2][%mdl 32]} 25. Bxc6 {[%emt 0:12:28]} Rxc6 {[%emt 0:00:42]} 26. Qd2 {[%emt 0:02:00]} Nf6 {[%emt 0:01:58] Inhibits Qd5.} 27. Rfe1 {[%emt 0:01:41][%cal Oe1e5] aiming for Rxe5!} O-O {[%emt 0:00:44]} 28. Qg5 {[%emt 0:00:22]} (28. h3 $11 {remains equal.}) 28... Rxc2 $17 {[%emt 0:05:25]} 29. Rxe5 {[%emt 0:07:18]} Qa7+ {[%emt 0:00:07]} 30. Kh1 {[%emt 0:00:00] [#]} Qf2 $1 {[%emt 0:00:00]} 31. Rg1 $15 {[%emt 0:00:00]} Nh7 {[%emt 0:00:00]} 32. Qe7 {[%emt 0:00:00]} Rxb2 {[%emt 0:00:00] And now ...Qd4 would win.} 33. Nxh5 {[%emt 0:00:00] [#]} gxh5 {[%emt 0:00:00]} ({Better is} 33... b3 $1 $17 {...Rc2 is the strong threat.} 34. Nf4 Rc2) 34. Rg5+ $1 $11 {[%emt 0:00:00]} Nxg5 {[%emt 0:00:00]} 35. Qxg5+ {[%emt 0:00:00]} Kh7 {[%emt 0:00:00] Weighted Error Value: White=0.22 (precise) /Black=0.20 (precise)} 1/2-1/2

[Event "Grandiscacchi GM Festival 2022"]
[Site "Montebelluna"]
[Date "2022.05.18"]
[Round "6.3"]
[White "Kalogridis, Antonios"]
[Black "Siddharth, Jagadeesh"]
[Result "0-1"]
[ECO "A43"]
[WhiteElo "2306"]
[BlackElo "2393"]
[Annotator "TA"]
[PlyCount "74"]
[EventDate "2022.05.17"]
[EventType "swiss"]
[EventCountry "ITA"]
[SourceTitle "playchess.com"]
[Source "ChessBase"]
[SourceQuality "1"]
[TimeControl "40/3600+30:1800+30"]

{[%evp 10,74,74,64,103,99,93,96,99,37,54,30,42,43,114,83,73,77,212,0,43,0,0,0,0,0,104,110,114,103,107,25,10,-807,-791,-789,-773,-1030,-929,-1027,-1016,-958,-989,-887,-519,-1119,-809,-785,-797,-777,-729,-673,-442,-439,-442,-438,-416,-523,-499,-943,-979,-1527,-1522,-29981,-29982,-29983,-29983]} 1. d4 {[%emt 0:00:01]} g6 {[%emt 0:02:26]} 2. c4 {[%emt 0:00:18]} Bg7 {[%emt 0:00:08]} 3. e4 {[%emt 0:00:06]} d6 {[%emt 0:00:10]} 4. Nc3 {[%emt 0:00:34]} c5 {[%emt 0:00:21]} 5. d5 {[%emt 0:01:04]} Bxc3+ {[%emt 0:00:16]} 6. bxc3 {[%emt 0:00:02]} e5 $1 {[%emt 0:00:10][%mdl 4] is now more promising than 6...Qa5. A43: Schmid Benoni.} 7. Bd3 {[%emt 0:03:40]} Nd7 {[%emt 0:00:44]} 8. Ne2 {[%emt 0:02:26] [#]} h5 $146 {[%emt 0:00:34] White is better.} ({Predecessor:} 8... Qe7 9. a4 a5 10. h4 h6 11. f3 Kd8 12. Be3 Nb6 13. Qb3 Ra6 14. g4 Bd7 {0-1 (65) Muradli,M (2523)-Ilyasli,U (2310) Nakhchivan 2022}) 9. O-O {[%emt 0:01:26]} (9. h4 $16) 9... h4 $14 {[%emt 0:00:27]} 10. f4 {[%emt 0:02:57]} exf4 {[%emt 0:05:18]} 11. Bxf4 {[%emt 0:09:41]} Qe7 {[%emt 0:00:50] [#]} (11... Ne5 $14) 12. Nd4 $1 $16 {[%emt 0:02:21][%mdl 512]} cxd4 {[%emt 0:10:42]} 13. cxd4 {[%emt 0:00:05]} f6 {[%emt 0:19:56]} (13... h3 $16 {was called for.}) 14. e5 $2 {[%emt 0:15:33]} ({Only move:} 14. c5 $1 $18) 14... fxe5 {[%emt 0:03:10]} 15. Bxg6+ {[%emt 0:00:32]} Kd8 {[%emt 0:00:08]} 16. dxe5 {[%emt 0:00:14]} dxe5 {[%emt 0:01:19]} (16... Nxe5 $2 17. Qd2 $1 Nf6 18. Bxe5 dxe5 19. d6 $18) 17. Be3 {[%emt 0:01:48] aiming for Rf7. This bishop pair is nice.} Qd6 {[%emt 0:04:48] [#]} (17... Ngf6 $11) 18. Qc2 $1 {[%emt 0:02:27][%mdl 1024] Strongly threatening c5. White has strong compensation.} b6 {[%emt 0:03:00] Against c5} 19. Rf7 {[%emt 0:00:48] Hoping for Raf1.} Nh6 {[%emt 0:01:36]} 20. Rg7 {[%emt 0:06:20]} (20. c5 $16 bxc5 21. Bg5+ Kc7 22. Rg7) 20... Qf6 $11 {[%emt 0:02:30] [#]} 21. Qa4 $2 {[%emt 0:06:07][%mdl 8192]} Qxg7 {[%emt 0:06:33]} 22. Bg5+ {[%emt 0:00:03]} Nf6 {[%emt 0:00:10]} (22... Kc7 23. Qc6+ Kb8 24. d6 $16) 23. Qc6 {[%emt 0:00:33] [#]} Nhg4 $1 {[%emt 0:00:27][%cal Og7g6]} 24. Rf1 {[%emt 0:01:49] [#]} Qxg6 $1 {[%emt 0:01:10]} 25. Bxf6+ {[%emt 0:03:47]} Nxf6 {[%emt 0:00:11]} 26. Rxf6 {[%emt 0:00:07]} Qb1+ {[%emt 0:01:31]} 27. Kf2 {[%emt 0:00:26]} (27. Rf1 $142 Qh7 28. Qxa8) 27... Qxa2+ {[%emt 0:01:14]} 28. Kg1 {[%emt 0:03:28]} Qa1+ {[%emt 0:00:50]} 29. Rf1 {[%emt 0:00:05]} Qd4+ {[%emt 0:00:16]} 30. Kh1 {[%emt 0:00:00]} Qc5 {[%emt 0:00:00]} 31. Qf6+ {[%emt 0:00:00]} Qe7 {[%emt 0:00:00]} 32. Qxh8+ {[%emt 0:00:00]} Kc7 {[%emt 0:00:00]} 33. Rf8 {[%emt 0:00:00]} h3 {[%emt 0:00:00]} 34. Re8 {[%emt 0:00:00]} (34. gxh3 $142 Bg4 35. d6+ (35. Rxa8 {leads to mate.} Bf3+ 36. Kg1 Qg5+ 37. Kf2 Qg2+ 38. Ke3 Qe2#) 35... Kxd6 36. Rf6+ (36. Qh6+ $2 Kc7 $19) 36... Kc7 37. Qxa8 Qxf6 38. Qxa7+ Kd8 39. Qa8+ Bc8 40. Kg1) 34... Qg5 $19 {[%emt 0:00:00][%csl Gh3][%cal Rg5g2]} 35. gxh3 {[%emt 0:00:00] [#]} Bxh3 $1 {[%emt 0:00:00][%cal Rg5c1][%mdl 512]} 36. Qh7+ {[%emt 0:00:00]} (36. Re7+ Kd6) 36... Kd6 {[%emt 0:00:00][%cal Rg5c1]} 37. c5+ {[%emt 0:00:00]} bxc5 {[%emt 0:00:00] Weighted Error Value: White=0.70/Black=0.49} 0-1

[Event "Grandiscacchi GM Festival 2022"]
[Site "Montebelluna"]
[Date "2022.05.18"]
[Round "6.4"]
[White "Shahil Dey"]
[Black "Rozen, Eytan"]
[Result "0-1"]
[ECO "B19"]
[WhiteElo "2369"]
[BlackElo "2425"]
[Annotator "TA"]
[PlyCount "112"]
[EventDate "2022.05.17"]
[EventType "swiss"]
[EventCountry "ITA"]
[SourceTitle "playchess.com"]
[Source "ChessBase"]
[SourceQuality "1"]
[TimeControl "40/3600+30:1800+30"]

{[%evp 26,112,25,23,28,23,24,28,26,0,19,0,-18,-12,0,-11,-15,-8,0,-4,0,0,0,-8,-5,-79,-76,-52,-80,-105,-105,-113,-108,-106,-120,-116,-112,-121,-117,-118,-110,-104,-101,-121,-105,-306,-311,-329,-328,-321,-310,-302,-289,-359,-333,-360,-351,-339,-337,-393,-397,-394,-416,-507,-502,-539,-516,-607,-612,-29970,-29971,-29972,-29972,-29972,-29972,-29969,-29969,-29945,-11050,-29980,-29980,-29981,-29982,-29982,-29983,-29982,-29983,-29983,-29984]} 1. e4 {[%emt 0:00:02]} c6 {[%emt 0:03:12]} 2. d4 {[%emt 0:00:05]} d5 {[%emt 0:00:07]} 3. Nd2 {[%emt 0:00:08]} dxe4 {[%emt 0:00:14]} 4. Nxe4 {[%emt 0:00:07]} Bf5 {[%emt 0:00:08]} 5. Ng3 {[%emt 0:00:31]} Bg6 {[%emt 0:00:22]} 6. h4 {[%emt 0:00:19]} h6 {[%emt 0:00:06]} 7. Nf3 {[%emt 0:00:06]} Nd7 {[%emt 0:00:06]} 8. h5 {[%emt 0:00:09]} Bh7 {[%emt 0:00:02]} 9. Bd3 {[%emt 0:00:09]} Bxd3 {[%emt 0:00:02]} 10. Qxd3 {[%emt 0:00:09]} e6 {[%emt 0:00:02]} 11. Bd2 {[%emt 0:00:10]} Ngf6 {[%emt 0:00:06]} 12. O-O-O {[%emt 0:00:10]} Be7 {[%emt 0:00:12]} 13. Kb1 {[%emt 0:01:25]} O-O {[%emt 0:00:34]} 14. Ne4 {[%emt 0:00:06]} Nxe4 {[%emt 0:00:06] B19: Classical Caro-Kann: 4...Bf5 main line.} 15. Qxe4 {[%emt 0:00:05]} Nf6 {[%emt 0:00:03]} 16. Qe2 {[%emt 0:00:08][%cal Og2g4]} Qd5 {[%emt 0:00:05] White has an edge.} 17. Be3 {[%emt 0:00:07]} Rad8 {[%emt 0:01:05]} (17... Nxh5 18. g4 Nf6 19. g5 $16) 18. Ka1 {[%emt 0:10:29] [#]} b5 $146 {[%emt 0:00:59]} ({Much less strong is} 18... Nxh5 19. g4 Nf6 20. g5 hxg5 21. Bxg5 $16) ({Predecessor:} 18... Ng4 19. Bc1 Nf6 20. c3 c5 21. Rde1 cxd4 22. Nxd4 Bc5 23. Be3 Rfe8 24. g4 e5 {½-½ (43) Khramov,A (2149)-Ponomarev,V (1984) St Petersburg 2021}) 19. Ne5 {[%emt 0:00:31]} Nd7 {[%emt 0:00:53]} ({But not} 19... Qxg2 20. Rhg1 Qe4 21. f3 $16) 20. f4 {[%emt 0:05:27]} Nxe5 {[%emt 0:00:42]} 21. dxe5 {[%emt 0:03:32]} Qe4 {[%emt 0:00:26][%cal Oe7c5] Threatens to win with ...Bc5!} 22. Qf2 {[%emt 0:00:14]} Rd5 {[%emt 0:06:28]} 23. Rxd5 {[%emt 0:01:13]} Qxd5 {[%emt 0:00:34]} 24. Qd2 {[%emt 0:09:07]} Qe4 {[%emt 0:04:55]} 25. Rc1 {[%emt 0:02:01]} (25. Kb1 $11) 25... Rd8 $17 {[%emt 0:01:56]} 26. Qf2 {[%emt 0:00:10]} a5 {[%emt 0:02:37][%cal Ba7a5,Ba5a4,Ba4a3][%mdl 32]} 27. Bb6 {[%emt 0:01:57]} Rd5 {[%emt 0:01:53]} 28. g3 {[%emt 0:09:39]} a4 $40 {[%emt 0:03:33][%mdl 128] Black is out for blood.} 29. Qe3 {[%emt 0:06:37] Against a3} Qxe3 {[%emt 0:08:34]} 30. Bxe3 {[%emt 0:00:00][%mdl 4096] Endgame KRB-KRB} f6 $1 {[%emt 0:00:00]} 31. exf6 {[%emt 0:00:00]} Bxf6 {[%emt 0:00:00]} 32. Rh1 {[%emt 0:00:00] [#]} a3 $1 {[%emt 0:00:00]} 33. Bc1 {[%emt 0:00:00]} Rd4 {[%emt 0:00:00] Black is more active.} 34. Rf1 {[%emt 0:00:00]} e5 {[%emt 0:00:00]} 35. Rg1 $2 {[%emt 0:00:00] Now White is beyond hope.} (35. fxe5 $17 {keeps fighting.} Bxe5 36. Kb1) 35... exf4 $19 {[%emt 0:00:00]} 36. gxf4 {[%emt 0:01:18]} Rb4 {[%emt 0:00:00][%cal Ra3b2]} 37. c3 {[%emt 0:02:57]} axb2+ {[%emt 0:00:00]} 38. Bxb2 {[%emt 0:00:06]} Rxf4 {[%emt 0:00:00]} 39. Rh1 {[%emt 0:00:35]} Rc4 {[%emt 0:00:00]} 40. Kb1 {[%emt 0:01:07]} Kf7 {[%emt 0:02:52]} ({Weaker is} 40... Bxc3 41. Rc1 b4 42. Bxc3 bxc3 43. Kc2 $19) 41. Kc2 {[%emt 0:30:56]} Ke6 {[%emt 0:30:27]} 42. Kb3 {[%emt 0:12:05]} Kf5 {[%emt 0:01:07]} 43. Rg1 {[%emt 0:00:33]} Rh4 {[%emt 0:01:21]} 44. Rd1 {[%emt 0:00:07]} Rxh5 {[%emt 0:03:15]} 45. Rd6 {[%emt 0:00:07]} c5 {[%emt 0:00:41] Strongly threatening ...c4+.} 46. Rb6 {[%emt 0:00:10]} Kg4 {[%emt 0:02:44]} 47. Rxb5 {[%emt 0:00:15] [#]} c4+ $1 {[%emt 0:00:10]} 48. Kxc4 {[%emt 0:00:06]} Rxb5 {[%emt 0:00:04]} 49. Kxb5 {[%emt 0:00:06] KB-KB} h5 {[%emt 0:00:05][%cal Bh6h5,Bh5h4,Bh4h3][%mdl 32]} 50. Ba3 {[%emt 0:02:02]} Be5 {[%emt 0:02:45]} 51. Bc5 {[%emt 0:02:34]} h4 {[%emt 0:00:11] ( -> ...Kg3)} 52. a4 {[%emt 0:00:24]} h3 {[%emt 0:00:24] Black mates.} 53. Bg1 {[%emt 0:00:18]} Bxc3 {[%emt 0:00:23]} 54. Bh2 {[%emt 0:00:54]} g5 {[%emt 0:01:10]} 55. Kc4 {[%emt 0:00:20]} Be1 {[%emt 0:00:14]} 56. Kd3 {[%emt 0:00:23]} Kf3 {[%emt 0:00:28] Weighted Error Value: White=0.44/Black=0.02 (flawless)} 0-1

[Event "Grandiscacchi GM Festival 2022"]
[Site "Montebelluna"]
[Date "2022.05.18"]
[Round "6.5"]
[White "Ojas Kulkarni"]
[Black "Fishchuk, Vladyslav"]
[Result "1/2-1/2"]
[ECO "A20"]
[WhiteElo "2235"]
[BlackElo "2102"]
[Annotator "TA"]
[PlyCount "64"]
[EventDate "2022.05.17"]
[EventType "swiss"]
[EventCountry "ITA"]
[SourceTitle "playchess.com"]
[Source "ChessBase"]
[SourceQuality "1"]
[TimeControl "40/3600+30:1800+30"]

{[%evp 9,64,2,10,0,4,19,6,1,0,-18,0,0,0,-5,10,-21,-10,-26,-18,-14,0,-3,0,-67,-64,-67,-67,-67,-67,-75,-87,-92,-63,-58,22,-58,-58,-109,-53,-89,-24,-27,0,0,0,0,0,0,0,0,0,0,0,0,0,0,0]} 1. c4 {[%emt 0:00:04]} e5 {[%emt 0:00:20]} 2. g3 {[%emt 0:00:07]} c6 {[%emt 0:00:11]} 3. d4 {[%emt 0:00:21]} e4 {[%emt 0:00:33]} 4. Nc3 {[%emt 0:02:40]} d5 {[%emt 0:00:12]} 5. Bg2 {[%emt 0:00:07]} Bb4 {[%emt 0:01:15]} 6. Qb3 {[%emt 0:00:23] A20: English Opening: 1...e5.} a5 {[%emt 0:01:43]} 7. cxd5 {[%emt 0:06:25]} cxd5 {[%emt 0:00:26]} 8. a3 {[%emt 0:00:06]} (8. Nh3 {keeps more tension.} Nc6 9. O-O Nxd4 10. Qxd5 Nxe2+ 11. Kh1) 8... Bxc3+ {[%emt 0:00:05]} 9. Qxc3 {[%emt 0:00:02]} Nc6 {[%emt 0:00:21] [#]} 10. f3 $146 {[%emt 0:01:28]} ({Predecessor:} 10. Nh3 Qb6 11. Be3 Nf6 12. O-O O-O 13. f3 Re8 14. Nf2 Bf5 15. g4 Bg6 16. g5 exf3 17. exf3 {1-0 (45) Jere,D (2371)-Shlyakhtenko,R (2361) New York 2021}) 10... f5 {[%emt 0:01:43]} 11. Nh3 {[%emt 0:03:26]} Qb6 {[%emt 0:00:43]} 12. e3 {[%emt 0:04:55]} Nf6 {[%emt 0:00:42]} 13. O-O {[%emt 0:03:39][%cal Ob2b4]} O-O {[%emt 0:00:24]} 14. Bd2 {[%emt 0:01:25]} a4 {[%emt 0:02:30]} 15. Rac1 {[%emt 0:02:24]} Bd7 {[%emt 0:00:29]} 16. Nf2 {[%emt 0:12:54]} (16. fxe4 $11 fxe4 17. Nf4) 16... Rfc8 $15 {[%emt 0:05:19]} 17. Rfe1 {[%emt 0:04:02]} exf3 {[%emt 0:02:19]} 18. Bxf3 {[%emt 0:00:29] [#]} Ne5 $1 {[%emt 0:00:26]} 19. dxe5 {[%emt 0:00:09]} Rxc3 {[%emt 0:00:07]} 20. Bxc3 {[%emt 0:00:04] A strong pair of Bishops.} Ne4 {[%emt 0:00:10]} 21. Bd4 {[%emt 0:00:29]} Qg6 {[%emt 0:00:40]} (21... Qd8 $15) 22. Nxe4 {[%emt 0:00:25]} (22. Rc7 $11 Qe8 23. Nd3) 22... fxe4 {[%emt 0:00:18]} 23. Bg2 {[%emt 0:00:10]} (23. Be2 $15) 23... Bc6 {[%emt 0:02:20]} ({Black should try} 23... Be6 $17 24. Rc7 h5) 24. Rf1 {[%emt 0:00:16]} Bb5 {[%emt 0:00:26]} ({Black should play} 24... Qe6 $17) 25. Rf4 $11 {[%emt 0:00:36]} Bc4 {[%emt 0:00:25]} 26. Bxe4 {[%emt 0:01:05] The position is equal.} dxe4 {[%emt 0:00:43]} 27. Rxc4 {[%emt 0:00:03][%cal Oe5e6] [#] Black must now prevent e6!} Qe6 {[%emt 0:00:43]} 28. Rc7 {[%emt 0:01:46]} Rc8 {[%emt 0:00:23]} 29. Rff7 {[%emt 0:04:06]} Rxc7 {[%emt 0:00:16]} 30. Rxc7 {[%emt 0:00:00]} b5 {[%emt 0:00:00]} 31. Rc5 {[%emt 0:00:00]} Qb3 {[%emt 0:00:00]} 32. e6 {[%emt 0:00:00][%cal Rc5c8]} Qd1+ {[%emt 0:00:00] Weighted Error Value: White=0.17 (very precise) /Black=0.18 (very precise)} 1/2-1/2

[Event "Grandiscacchi GM Festival 2022"]
[Site "Montebelluna"]
[Date "2022.05.19"]
[Round "7.1"]
[White "Jobava, Baadur"]
[Black "Pantsulaia, Levan"]
[Result "1/2-1/2"]
[ECO "D14"]
[WhiteElo "2600"]
[BlackElo "2587"]
[Annotator "TA"]
[PlyCount "23"]
[EventDate "2022.05.17"]
[EventType "swiss"]
[EventCountry "ITA"]
[SourceTitle "playchess.com"]
[Source "ChessBase"]
[SourceQuality "1"]
[TimeControl "40/3600+30:1800+30"]

{[%evp 20,21,0,0]} 1. d4 {[%emt 0:00:13]} d5 {[%emt 0:00:05]} 2. c4 {[%emt 0:00:03]} c6 {[%emt 0:00:03]} 3. cxd5 {[%emt 0:00:03]} cxd5 {[%emt 0:00:03]} 4. Nc3 {[%emt 0:00:03]} Nf6 {[%emt 0:00:04]} 5. Nf3 {[%emt 0:00:03]} Nc6 {[%emt 0:00:06]} 6. Bf4 {[%emt 0:00:04]} Bf5 {[%emt 0:00:04]} 7. e3 {[%emt 0:00:04]} e6 {[%emt 0:00:03]} 8. Bd3 {[%emt 0:00:02]} Bxd3 {[%emt 0:00:05]} 9. Qxd3 {[%emt 0:00:05]} Bd6 {[%emt 0:00:03]} 10. Bxd6 {[%emt 0:00:06]} Qxd6 {[%emt 0:00:04]} 11. O-O {[%emt 0:00:04] [#]} {Predecessor:} O-O $146 {D14: Slav Defence: Exchange variation with ...Bf5.} 12. Rfc1 {½-½ (12) Korobov,A (2699)-Bernadskiy,V (2589) Cattolica 2022} 1/2-1/2